[Event "Early-Titled-Tuesday-Blitz-July-09-2024"]
[Site "Chess.com"]
[Date "2024.07.09"]
[Round "5"]
[White "bazar-wokzal"]
[Black "bubeliang"]
[Result "1/2-1/2"]
[WhiteElo "2606"]
[BlackElo "2820"]
[TimeControl "180+1"]
[EndTime "9:00:15 PDT"]
[Termination "Game drawn - timeout vs insufficient material"]

1. e4 {[%clk 0:03:00.9]} 1... c6 {[%clk 0:02:58.7]} 2. d4 {[%clk 0:03:00.5]}
2... d5 {[%clk 0:02:59.6]} 3. f3 {[%clk 0:03:00.3]} 3... e6 {[%clk 0:02:57.2]}
4. Nc3 {[%clk 0:02:59.6]} 4... g6 {[%clk 0:02:57]} 5. Be3 {[%clk 0:02:57.6]}
5... Bg7 {[%clk 0:02:56.8]} 6. Qd2 {[%clk 0:02:58.2]} 6... Nf6 {[%clk
0:02:51.5]} 7. e5 {[%clk 0:02:55.1]} 7... Nfd7 {[%clk 0:02:50]} 8. h4 {[%clk
0:02:48.9]} 8... h5 {[%clk 0:02:43.1]} 9. f4 {[%clk 0:02:42.6]} 9... b6 {[%clk
0:02:35.9]} 10. Nf3 {[%clk 0:02:40.2]} 10... Ba6 {[%clk 0:02:33.7]} 11. O-O-O
{[%clk 0:02:38.6]} 11... Bxf1 {[%clk 0:02:31.2]} 12. Rdxf1 {[%clk 0:02:35.7]}
12... a5 {[%clk 0:02:28.4]} 13. Ng5 {[%clk 0:02:32.6]} 13... b5 {[%clk
0:02:21.5]} 14. Qe2 {[%clk 0:02:30]} 14... b4 {[%clk 0:02:19.9]} 15. Na4 {[%clk
0:02:24]} 15... Na6 {[%clk 0:02:06]} 16. g4 {[%clk 0:02:21.9]} 16... hxg4 {[%clk
0:02:05.7]} 17. Qxg4 {[%clk 0:02:21.8]} 17... Qe7 {[%clk 0:01:20.4]} 18. h5
{[%clk 0:02:20.7]} 18... Nc7 {[%clk 0:01:07.9]} 19. hxg6 {[%clk 0:02:16.8]}
19... fxg6 {[%clk 0:01:08.8]} 20. Rxh8+ {[%clk 0:02:10.6]} 20... Bxh8 {[%clk
0:01:09.7]} 21. Rh1 {[%clk 0:02:08.4]} 21... O-O-O {[%clk 0:01:07.4]} 22. Rh7
{[%clk 0:02:02.4]} 22... Bg7 {[%clk 0:01:02]} 23. Nf3 {[%clk 0:01:38]} 23... Qf7
{[%clk 0:00:54]} 24. Rh1 {[%clk 0:01:28.7]} 24... Rh8 {[%clk 0:00:46.9]} 25. Rg1
{[%clk 0:01:28.7]} 25... Nf8 {[%clk 0:00:43.4]} 26. Nc5 {[%clk 0:01:28.2]} 26...
Qf5 {[%clk 0:00:36.5]} 27. Qxf5 {[%clk 0:01:20.4]} 27... exf5 {[%clk 0:00:37.4]}
28. Ng5 {[%clk 0:01:16.1]} 28... Rh2 {[%clk 0:00:30.4]} 29. Nf7 {[%clk 0:01:08]}
29... Re2 {[%clk 0:00:25.8]} 30. Bd2 {[%clk 0:00:59.2]} 30... Nce6 {[%clk
0:00:22.9]} 31. Nd6+ {[%clk 0:00:54.2]} 31... Kd8 {[%clk 0:00:19.8]} 32. Nxe6+
{[%clk 0:00:52.9]} 32... Nxe6 {[%clk 0:00:20.7]} 33. Rxg6 {[%clk 0:00:52.8]}
33... Kd7 {[%clk 0:00:07.8]} 34. Nxf5 {[%clk 0:00:51.9]} 34... Bf8 {[%clk
0:00:08.5]} 35. c3 {[%clk 0:00:42]} 35... Rf2 {[%clk 0:00:06.7]} 36. Rg4 {[%clk
0:00:40.9]} 36... Ke8 {[%clk 0:00:04.6]} 37. Ng3 {[%clk 0:00:31]} 37... bxc3
{[%clk 0:00:04.9]} 38. bxc3 {[%clk 0:00:30.5]} 38... Ba3+ {[%clk 0:00:01.7]} 39.
Kd1 {[%clk 0:00:30.7]} 39... Rg2 {[%clk 0:00:01.6]} 40. Nh5 {[%clk 0:00:23.5]}
40... Rxg4 {[%clk 0:00:01]} 41. Nf6+ {[%clk 0:00:23.9]} 41... Kf7 {[%clk
0:00:01.9]} 42. Nxg4 {[%clk 0:00:24.8]} 42... Kg6 {[%clk 0:00:02.5]} 43. Ne3
{[%clk 0:00:23.3]} 43... Ng7 {[%clk 0:00:03]} 44. Kc2 {[%clk 0:00:22.3]} 44...
a4 {[%clk 0:00:01.4]} 45. c4 {[%clk 0:00:21.6]} 45... Nf5 {[%clk 0:00:02]} 46.
cxd5 {[%clk 0:00:19.3]} 46... Nxe3+ {[%clk 0:00:02]} 47. Bxe3 {[%clk 0:00:19.3]}
47... cxd5 {[%clk 0:00:02.9]} 48. Bc1 {[%clk 0:00:16.3]} 48... Be7 {[%clk
0:00:02.5]} 49. Kd3 {[%clk 0:00:15.5]} 49... Kf5 {[%clk 0:00:02.8]} 50. Ke3
{[%clk 0:00:14.8]} 50... Bb4 {[%clk 0:00:02.9]} 51. Bd2 {[%clk 0:00:14]} 51...
Be7 {[%clk 0:00:02.7]} 52. Ba5 {[%clk 0:00:13.2]} 52... Ba3 {[%clk 0:00:03.2]}
53. Bd8 {[%clk 0:00:12.1]} 53... Bf8 {[%clk 0:00:02.9]} 54. Bg5 {[%clk
0:00:11.1]} 54... Bb4 {[%clk 0:00:03.5]} 55. Kd3 {[%clk 0:00:11.4]} 55... Ke6
{[%clk 0:00:03.8]} 56. Bh6 {[%clk 0:00:11.1]} 56... Be7 {[%clk 0:00:03.6]} 57.
Kc3 {[%clk 0:00:10.1]} 57... Kf5 {[%clk 0:00:03.2]} 58. Bg5 {[%clk 0:00:09.7]}
58... Bf8 {[%clk 0:00:03]} 59. Kd3 {[%clk 0:00:08.4]} 59... Ke6 {[%clk
0:00:02.8]} 60. Ke3 {[%clk 0:00:08.3]} 60... Bb4 {[%clk 0:00:03.4]} 61. Bd8
{[%clk 0:00:07.5]} 61... Kf5 {[%clk 0:00:03.5]} 62. Bb6 {[%clk 0:00:07.1]} 62...
Bf8 {[%clk 0:00:04]} 63. Bc5 {[%clk 0:00:07]} 63... Bh6 {[%clk 0:00:04.2]} 64.
Kd3 {[%clk 0:00:04.4]} 64... Bxf4 {[%clk 0:00:04.1]} 65. Kc3 {[%clk 0:00:04.9]}
65... Bxe5 {[%clk 0:00:01]} 66. dxe5 {[%clk 0:00:04.4]} 66... Kxe5 {[%clk
0:00:01.9]} 67. Bd4+ {[%clk 0:00:04.8]} 67... Kd6 {[%clk 0:00:02.2]} 68. Kb4
{[%clk 0:00:05.3]} 68... Kc6 {[%clk 0:00:03.1]} 69. Kxa4 {[%clk 0:00:05.7]}
69... Kb7 {[%clk 0:00:04]} 70. Kb5 {[%clk 0:00:06]} 70... Ka8 {[%clk 0:00:04.9]}
71. Ka6 {[%clk 0:00:06.3]} 71... Kb8 {[%clk 0:00:04.8]} 72. a4 {[%clk
0:00:06.2]} 72... Ka8 {[%clk 0:00:05.7]} 73. a5 {[%clk 0:00:06.6]} 73... Kb8
{[%clk 0:00:06.6]} 74. Kb6 {[%clk 0:00:07.1]} 74... Ka8 {[%clk 0:00:07.5]} 75.
Ka6 {[%clk 0:00:07.6]} 75... Kb8 {[%clk 0:00:08.4]} 76. Kb6 {[%clk 0:00:05.2]}
76... Ka8 {[%clk 0:00:09.3]} 77. Kc6 {[%clk 0:00:05.6]} 77... Kb8 {[%clk
0:00:10.2]} 78. Kd7 {[%clk 0:00:05.6]} 78... Ka8 {[%clk 0:00:11.1]} 79. Be5
{[%clk 0:00:05.5]} 79... Kb7 {[%clk 0:00:11.1]} 80. Bd4 {[%clk 0:00:05.5]} 80...
Ka6 {[%clk 0:00:10.6]} 81. Bc3 {[%clk 0:00:05.6]} 81... d4 {[%clk 0:00:10.5]}
82. Bd2 {[%clk 0:00:05.8]} 82... Kb7 {[%clk 0:00:10.6]} 83. Kd8 {[%clk 0:00:06]}
83... Ka8 {[%clk 0:00:11.5]} 84. Kc8 {[%clk 0:00:06.4]} 84... d3 {[%clk
0:00:11.2]} 85. Be3 {[%clk 0:00:04.1]} 85... d2 {[%clk 0:00:10.7]} 86. Bxd2
{[%clk 0:00:04.5]} 86... Ka7 {[%clk 0:00:11.6]} 87. Be1 {[%clk 0:00:03.7]} 87...
Ka8 {[%clk 0:00:12.5]} 1/2-1/2

[Event "Early-Titled-Tuesday-Blitz-July-09-2024"]
[Site "Chess.com"]
[Date "2024.07.09"]
[Round "5"]
[White "rezamahdavi2008"]
[Black "twofoxniel"]
[Result "1/2-1/2"]
[WhiteElo "2934"]
[BlackElo "2646"]
[TimeControl "180+1"]
[EndTime "9:00:56 PDT"]
[Termination "Game drawn - insufficient material"]

1. e4 {[%clk 0:03:00.9]} 1... d5 {[%clk 0:02:59.7]} 2. exd5 {[%clk 0:03:00.3]}
2... Nf6 {[%clk 0:03:00]} 3. d4 {[%clk 0:02:43.5]} 3... Bg4 {[%clk 0:02:59.1]}
4. Be2 {[%clk 0:02:40.2]} 4... Bxe2 {[%clk 0:02:58.5]} 5. Qxe2 {[%clk
0:02:41.1]} 5... Qxd5 {[%clk 0:02:59.1]} 6. Nf3 {[%clk 0:02:41.8]} 6... e6
{[%clk 0:02:55.8]} 7. c4 {[%clk 0:02:41.8]} 7... Qf5 {[%clk 0:02:47.3]} 8. O-O
{[%clk 0:02:36.6]} 8... Be7 {[%clk 0:02:42.7]} 9. Nc3 {[%clk 0:02:36.5]} 9...
O-O {[%clk 0:02:41.8]} 10. Rd1 {[%clk 0:02:34.5]} 10... Bd6 {[%clk 0:02:34.1]}
11. h3 {[%clk 0:02:30.5]} 11... Nc6 {[%clk 0:02:32.8]} 12. Bg5 {[%clk
0:02:28.2]} 12... h6 {[%clk 0:02:28.4]} 13. Bxf6 {[%clk 0:02:27.5]} 13... Qxf6
{[%clk 0:02:28.7]} 14. Ne4 {[%clk 0:02:28]} 14... Qg6 {[%clk 0:02:28.8]} 15. c5
{[%clk 0:02:05.8]} 15... Be7 {[%clk 0:02:26.3]} 16. d5 {[%clk 0:02:06]} 16...
exd5 {[%clk 0:02:25.9]} 17. Rxd5 {[%clk 0:02:06.9]} 17... Rfe8 {[%clk 0:02:25]}
18. Qc4 {[%clk 0:01:50]} 18... Bf8 {[%clk 0:02:17]} 19. Ng3 {[%clk 0:01:30.8]}
19... Rad8 {[%clk 0:02:06.1]} 20. Rf5 {[%clk 0:01:27.9]} 20... Qe6 {[%clk
0:02:04.7]} 21. Qb5 {[%clk 0:01:25.1]} 21... Qd7 {[%clk 0:01:56.5]} 22. Rf4
{[%clk 0:01:00.7]} 22... Ne5 {[%clk 0:01:53]} 23. Qxb7 {[%clk 0:00:51.2]} 23...
Bxc5 {[%clk 0:01:48.7]} 24. Nxe5 {[%clk 0:00:50]} 24... Rxe5 {[%clk 0:01:48.2]}
25. Kh2 {[%clk 0:00:45.4]} 25... Re7 {[%clk 0:01:43.1]} 26. Rf3 {[%clk
0:00:39.3]} 26... Qd2 {[%clk 0:01:39.6]} 27. Ne4 {[%clk 0:00:31.8]} 27... Bd6+
{[%clk 0:01:29]} 28. Nxd6 {[%clk 0:00:30.2]} 28... Qxd6+ {[%clk 0:01:28]} 29. g3
{[%clk 0:00:31]} 29... Qb6 {[%clk 0:01:27.5]} 30. Qxb6 {[%clk 0:00:27.6]} 30...
axb6 {[%clk 0:01:28.4]} 31. a4 {[%clk 0:00:22.9]} 31... Rd2 {[%clk 0:01:28.5]}
32. b4 {[%clk 0:00:23.1]} 32... Rb2 {[%clk 0:01:24.9]} 33. a5 {[%clk 0:00:22.4]}
33... Rxb4 {[%clk 0:01:20.7]} 34. a6 {[%clk 0:00:22.3]} 34... Re8 {[%clk
0:01:21]} 35. Rd1 {[%clk 0:00:16.3]} 35... Ra4 {[%clk 0:01:19.1]} 36. Rd7 {[%clk
0:00:16.7]} 36... Rf8 {[%clk 0:01:19.1]} 37. Rxc7 {[%clk 0:00:17.3]} 37... Rxa6
{[%clk 0:01:19.5]} 38. Rb7 {[%clk 0:00:17.9]} 38... g6 {[%clk 0:01:16.5]} 39. h4
{[%clk 0:00:14.4]} 39... h5 {[%clk 0:01:15.1]} 40. Kg2 {[%clk 0:00:14.3]} 40...
Kg7 {[%clk 0:01:15.6]} 41. Rf4 {[%clk 0:00:14.7]} 41... Raa8 {[%clk 0:01:09]}
42. Rxb6 {[%clk 0:00:14.3]} 42... Ra7 {[%clk 0:01:09.5]} 43. Rfb4 {[%clk
0:00:12.4]} 43... Re8 {[%clk 0:01:09.5]} 44. Rc6 {[%clk 0:00:12.5]} 44... Ree7
{[%clk 0:01:09.2]} 45. Rf4 {[%clk 0:00:12.8]} 45... Rec7 {[%clk 0:01:09]} 46.
Rd6 {[%clk 0:00:13.1]} 46... Rd7 {[%clk 0:01:09.4]} 47. Rdf6 {[%clk 0:00:13.7]}
47... Re7 {[%clk 0:01:09.7]} 48. Rf3 {[%clk 0:00:13.1]} 48... Red7 {[%clk
0:01:09.9]} 49. R6f4 {[%clk 0:00:13.4]} 49... Re7 {[%clk 0:01:10.3]} 50. Rd3
{[%clk 0:00:13.6]} 50... Red7 {[%clk 0:01:10.5]} 51. Rb3 {[%clk 0:00:14.1]}
51... Rab7 {[%clk 0:01:10.3]} 52. Rbf3 {[%clk 0:00:14.4]} 52... Re7 {[%clk
0:01:10.5]} 53. g4 {[%clk 0:00:14.6]} 53... hxg4 {[%clk 0:01:10.4]} 54. Rxg4
{[%clk 0:00:15.5]} 54... Rb5 {[%clk 0:01:11]} 55. Kg3 {[%clk 0:00:15]} 55... Rh5
{[%clk 0:01:11.4]} 56. Ra3 {[%clk 0:00:15.5]} 56... f5 {[%clk 0:01:09.9]} 57.
Rb4 {[%clk 0:00:15.5]} 57... Kh6 {[%clk 0:01:02.6]} 58. Ra6 {[%clk 0:00:15.4]}
58... Re4 {[%clk 0:01:00.5]} 59. Rxe4 {[%clk 0:00:12.7]} 59... fxe4 {[%clk
0:01:01.4]} 60. Re6 {[%clk 0:00:13.4]} 60... Rb5 {[%clk 0:00:52.8]} 61. Rxe4
{[%clk 0:00:13.7]} 61... Rb3+ {[%clk 0:00:53]} 62. Kg4 {[%clk 0:00:13.7]} 62...
Rb1 {[%clk 0:00:53.2]} 63. Re6 {[%clk 0:00:09.9]} 63... Rg1+ {[%clk 0:00:53.3]}
64. Kf4 {[%clk 0:00:09.9]} 64... Rh1 {[%clk 0:00:53.6]} 65. Kg3 {[%clk
0:00:09.2]} 65... Rg1+ {[%clk 0:00:53.8]} 66. Kh2 {[%clk 0:00:09.9]} 66... Rf1
{[%clk 0:00:53.7]} 67. Kg2 {[%clk 0:00:09.9]} 67... Rb1 {[%clk 0:00:53.5]} 68.
Re5 {[%clk 0:00:09.4]} 68... Rb4 {[%clk 0:00:53.4]} 69. Kg3 {[%clk 0:00:09.4]}
69... Rb3+ {[%clk 0:00:53.7]} 70. f3 {[%clk 0:00:04.1]} 70... Rb1 {[%clk
0:00:54.1]} 71. Re6 {[%clk 0:00:03.5]} 71... Rg1+ {[%clk 0:00:54.3]} 72. Kh2
{[%clk 0:00:04.1]} 72... Rf1 {[%clk 0:00:54.6]} 73. Kg2 {[%clk 0:00:04.2]} 73...
Ra1 {[%clk 0:00:54.8]} 74. Rb6 {[%clk 0:00:04.3]} 74... Ra2+ {[%clk 0:00:54.7]}
75. Kg3 {[%clk 0:00:04.8]} 75... Ra1 {[%clk 0:00:55.3]} 76. Kf4 {[%clk
0:00:04.4]} 76... Rh1 {[%clk 0:00:55.4]} 77. Kg4 {[%clk 0:00:04.6]} 77... Rg1+
{[%clk 0:00:55.8]} 78. Kh3 {[%clk 0:00:05.4]} 78... Rh1+ {[%clk 0:00:56.4]} 79.
Kg3 {[%clk 0:00:06.2]} 79... Rg1+ {[%clk 0:00:56.9]} 80. Kh2 {[%clk 0:00:06.8]}
80... Rf1 {[%clk 0:00:57.5]} 81. Kg2 {[%clk 0:00:06.9]} 81... Ra1 {[%clk
0:00:58.1]} 82. Rb5 {[%clk 0:00:04.7]} 82... Ra2+ {[%clk 0:00:56.5]} 83. Kh3
{[%clk 0:00:05.2]} 83... Ra1 {[%clk 0:00:57.2]} 84. Kg3 {[%clk 0:00:01.4]} 84...
Rg1+ {[%clk 0:00:57.3]} 85. Kh2 {[%clk 0:00:02.1]} 85... Rf1 {[%clk 0:00:57.5]}
86. Rb3 {[%clk 0:00:02.7]} 86... Rc1 {[%clk 0:00:58.4]} 87. Rb2 {[%clk
0:00:02.3]} 87... Rc3 {[%clk 0:00:58.2]} 88. Kg2 {[%clk 0:00:02.6]} 88... Rc1
{[%clk 0:00:58.3]} 89. Re2 {[%clk 0:00:02.4]} 89... Rd1 {[%clk 0:00:58.6]} 90.
Rf2 {[%clk 0:00:02.2]} 90... Rc1 {[%clk 0:00:58.8]} 91. Rf1 {[%clk 0:00:02.6]}
91... Rc3 {[%clk 0:00:58.9]} 92. Kg3 {[%clk 0:00:02.7]} 92... Rc2 {[%clk
0:00:59.3]} 93. Re1 {[%clk 0:00:03.2]} 93... Rb2 {[%clk 0:00:59.1]} 94. Re8
{[%clk 0:00:02.9]} 94... Rb1 {[%clk 0:00:59.2]} 95. Rh8+ {[%clk 0:00:03.6]}
95... Kg7 {[%clk 0:00:59.5]} 96. Ra8 {[%clk 0:00:04.5]} 96... Kh6 {[%clk
0:01:00.1]} 97. Ra2 {[%clk 0:00:02.8]} 97... Rg1+ {[%clk 0:00:59.7]} 98. Rg2
{[%clk 0:00:03.5]} 98... Rf1 {[%clk 0:01:00.2]} 99. Kf4 {[%clk 0:00:03.8]} 99...
Rh1 {[%clk 0:00:59.9]} 100. Kg4 {[%clk 0:00:04.1]} 100... Rf1 {[%clk 0:00:59.9]}
101. Rg3 {[%clk 0:00:03.6]} 101... Rh1 {[%clk 0:00:59.7]} 102. Rh3 {[%clk
0:00:02.6]} 102... Rg1+ {[%clk 0:00:59.8]} 103. Kf4 {[%clk 0:00:03.3]} 103...
Re1 {[%clk 0:00:59.6]} 104. Rh2 {[%clk 0:00:03]} 104... Rg1 {[%clk 0:00:59]}
105. Ra2 {[%clk 0:00:02.4]} 105... Kh5 {[%clk 0:00:58.9]} 106. Ra8 {[%clk
0:00:02.3]} 106... Kh6 {[%clk 0:00:58.4]} 107. Rh8+ {[%clk 0:00:02.9]} 107...
Kg7 {[%clk 0:00:58.8]} 108. Rb8 {[%clk 0:00:03.3]} 108... Kh6 {[%clk 0:00:59.4]}
109. Rb2 {[%clk 0:00:02]} 109... Kh5 {[%clk 0:00:59.1]} 110. Rb5+ {[%clk
0:00:01.6]} 110... Kxh4 {[%clk 0:00:58.4]} 111. Rb8 {[%clk 0:00:02.2]} 111...
g5+ {[%clk 0:00:58.9]} 112. Kf5 {[%clk 0:00:02.5]} 112... Kg3 {[%clk 0:00:59.4]}
113. Rb3 {[%clk 0:00:02.4]} 113... Rf1 {[%clk 0:00:59.4]} 114. f4+ {[%clk
0:00:01.2]} 114... Kh4 {[%clk 0:00:57.5]} 115. Rb4 {[%clk 0:00:01]} 115... Rxf4+
{[%clk 0:00:57.4]} 116. Rxf4+ {[%clk 0:00:01.9]} 116... gxf4 {[%clk 0:00:58.3]}
117. Kxf4 {[%clk 0:00:02.7]} 1/2-1/2

[Event "Early-Titled-Tuesday-Blitz-July-09-2024"]
[Site "Chess.com"]
[Date "2024.07.09"]
[Round "5"]
[White "Sadykov_Ramil"]
[Black "BardArtem"]
[Result "1/2-1/2"]
[WhiteElo "2621"]
[BlackElo "2816"]
[TimeControl "180+1"]
[EndTime "9:01:11 PDT"]
[Termination "Game drawn by stalemate"]

1. e4 {[%clk 0:02:54.4]} 1... e5 {[%clk 0:02:58.8]} 2. Nf3 {[%clk 0:02:54.4]}
2... Nc6 {[%clk 0:02:59.6]} 3. Nc3 {[%clk 0:02:53.1]} 3... Nf6 {[%clk
0:02:59.8]} 4. Bb5 {[%clk 0:02:52.9]} 4... Nd4 {[%clk 0:02:58.4]} 5. Nxd4 {[%clk
0:02:51.7]} 5... exd4 {[%clk 0:02:59.3]} 6. e5 {[%clk 0:02:52.2]} 6... dxc3
{[%clk 0:02:57.3]} 7. exf6 {[%clk 0:02:52.4]} 7... Qxf6 {[%clk 0:02:58.2]} 8.
dxc3 {[%clk 0:02:42.2]} 8... Bc5 {[%clk 0:02:54.9]} 9. Qe2+ {[%clk 0:02:40.9]}
9... Qe6 {[%clk 0:02:52.8]} 10. Bc4 {[%clk 0:02:36.7]} 10... Qxe2+ {[%clk
0:02:50.5]} 11. Kxe2 {[%clk 0:02:37.6]} 11... O-O {[%clk 0:02:50.2]} 12. Kf3
{[%clk 0:02:31.5]} 12... c6 {[%clk 0:02:49.1]} 13. Re1 {[%clk 0:02:26.8]} 13...
d5 {[%clk 0:02:49.1]} 14. Bd3 {[%clk 0:02:26.8]} 14... Be6 {[%clk 0:02:43.2]}
15. Be3 {[%clk 0:02:24.9]} 15... Bd6 {[%clk 0:02:42.5]} 16. Bf4 {[%clk
0:02:24.2]} 16... Bc5 {[%clk 0:02:41.7]} 17. Be3 {[%clk 0:02:24.1]} 17... Be7
{[%clk 0:02:39.3]} 18. Bd4 {[%clk 0:02:08.7]} 18... c5 {[%clk 0:02:33.6]} 19.
Be5 {[%clk 0:01:43.4]} 19... a6 {[%clk 0:02:03.3]} 20. a4 {[%clk 0:01:29]} 20...
Rac8 {[%clk 0:01:58.4]} 21. Bf4 {[%clk 0:01:16.3]} 21... g5 {[%clk 0:01:52.5]}
22. Be5 {[%clk 0:01:05.9]} 22... h5 {[%clk 0:01:44]} 23. h3 {[%clk 0:00:58.4]}
23... g4+ {[%clk 0:01:20.2]} 24. hxg4 {[%clk 0:00:56.4]} 24... Bxg4+ {[%clk
0:01:21.1]} 25. Kg3 {[%clk 0:00:55.2]} 25... f5 {[%clk 0:01:21.7]} 26. f3 {[%clk
0:00:47.7]} 26... h4+ {[%clk 0:01:19.2]} 27. Kf2 {[%clk 0:00:37.4]} 27... Bh5
{[%clk 0:01:15.8]} 28. Bf4 {[%clk 0:00:32.7]} 28... Rf7 {[%clk 0:00:51.7]} 29.
c4 {[%clk 0:00:20.4]} 29... Bf6 {[%clk 0:00:44.8]} 30. cxd5 {[%clk 0:00:16.6]}
30... c4 {[%clk 0:00:42.2]} 31. Bf1 {[%clk 0:00:11.6]} 31... Bxb2 {[%clk
0:00:42]} 32. Rab1 {[%clk 0:00:10.9]} 32... Bd4+ {[%clk 0:00:42.3]} 33. Be3
{[%clk 0:00:10.4]} 33... Be5 {[%clk 0:00:39.2]} 34. f4 {[%clk 0:00:10.2]} 34...
Bb8 {[%clk 0:00:35.9]} 35. Be2 {[%clk 0:00:08.4]} 35... Bxe2 {[%clk 0:00:35.7]}
36. Kxe2 {[%clk 0:00:06.2]} 36... Re8 {[%clk 0:00:35.8]} 37. Kf3 {[%clk
0:00:05.1]} 37... Rfe7 {[%clk 0:00:36.2]} 38. Bf2 {[%clk 0:00:05]} 38... Re4
{[%clk 0:00:25.5]} 39. Rxe4 {[%clk 0:00:04.7]} 39... Rxe4 {[%clk 0:00:21]} 40.
Rxb7 {[%clk 0:00:04]} 40... Rxf4+ {[%clk 0:00:21.5]} 41. Ke2 {[%clk 0:00:04.6]}
41... Re4+ {[%clk 0:00:21.3]} 42. Kf3 {[%clk 0:00:04.8]} 42... Bh2 {[%clk
0:00:11.5]} 43. Ra7 {[%clk 0:00:02.6]} 43... Rf4+ {[%clk 0:00:05.8]} 44. Ke2
{[%clk 0:00:02.6]} 44... Rg4 {[%clk 0:00:06.7]} 45. Kf3 {[%clk 0:00:02.5]} 45...
Rf4+ {[%clk 0:00:07.3]} 46. Ke2 {[%clk 0:00:03]} 46... Re4+ {[%clk 0:00:08.2]}
47. Kf3 {[%clk 0:00:03.3]} 47... Re5 {[%clk 0:00:09.1]} 48. Rxa6 {[%clk
0:00:03.2]} 48... Rxd5 {[%clk 0:00:09.8]} 49. Rc6 {[%clk 0:00:03.3]} 49... h3
{[%clk 0:00:04.7]} 50. gxh3 {[%clk 0:00:03.1]} 50... Be5 {[%clk 0:00:05.6]} 51.
Rxc4 {[%clk 0:00:02.9]} 51... Rd1 {[%clk 0:00:04.5]} 52. h4 {[%clk 0:00:02.4]}
52... Kf7 {[%clk 0:00:04.6]} 53. h5 {[%clk 0:00:02.5]} 53... Ra1 {[%clk
0:00:03.7]} 54. Rh4 {[%clk 0:00:02.1]} 54... Ra3+ {[%clk 0:00:04.3]} 55. Kg2
{[%clk 0:00:02.3]} 55... Bf6 {[%clk 0:00:05.2]} 56. Rh3 {[%clk 0:00:02.4]} 56...
Rxa4 {[%clk 0:00:05.5]} 57. h6 {[%clk 0:00:03]} 57... Rg4+ {[%clk 0:00:04.8]}
58. Kf3 {[%clk 0:00:03.1]} 58... Rc4 {[%clk 0:00:05.7]} 59. h7 {[%clk
0:00:03.1]} 59... Bh8 {[%clk 0:00:05.9]} 60. Be3 {[%clk 0:00:02.9]} 60... Rxc2
{[%clk 0:00:05]} 61. Rh5 {[%clk 0:00:03]} 61... Kg6 {[%clk 0:00:04.8]} 62. Rh1
{[%clk 0:00:03.6]} 62... Rc3 {[%clk 0:00:04.7]} 63. Ke2 {[%clk 0:00:04.1]} 63...
Ra3 {[%clk 0:00:04.5]} 64. Kf2 {[%clk 0:00:03.9]} 64... Kf7 {[%clk 0:00:03.6]}
65. Ke2 {[%clk 0:00:03.8]} 65... Ke6 {[%clk 0:00:04.1]} 66. Rg1 {[%clk 0:00:04]}
66... Ra2+ {[%clk 0:00:02]} 67. Kf3 {[%clk 0:00:04]} 67... Ra3 {[%clk 0:00:02]}
68. Rg8 {[%clk 0:00:03.3]} 68... Bd4 {[%clk 0:00:02.6]} 69. h8=Q {[%clk
0:00:03.6]} 69... Rxe3+ {[%clk 0:00:02.8]} 70. Kf4 {[%clk 0:00:03.4]} 70... Re4+
{[%clk 0:00:02.9]} 71. Kf3 {[%clk 0:00:02.8]} 71... Bxh8 {[%clk 0:00:03.6]} 72.
Rxh8 {[%clk 0:00:03.7]} 72... Ra4 {[%clk 0:00:04.2]} 73. Rh6+ {[%clk 0:00:03.3]}
73... Kf7 {[%clk 0:00:04.5]} 74. Rh5 {[%clk 0:00:03.3]} 74... Kf6 {[%clk
0:00:04.6]} 75. Rh8 {[%clk 0:00:04]} 75... Rb4 {[%clk 0:00:03.4]} 76. Ke3 {[%clk
0:00:04.3]} 76... Ke5 {[%clk 0:00:03.4]} 77. Re8+ {[%clk 0:00:04.5]} 77... Kf6
{[%clk 0:00:04.1]} 78. Rf8+ {[%clk 0:00:05]} 78... Ke6 {[%clk 0:00:04.8]} 79.
Re8+ {[%clk 0:00:05.5]} 79... Kf7 {[%clk 0:00:05.5]} 80. Re5 {[%clk 0:00:05.7]}
80... Kg6 {[%clk 0:00:05.3]} 81. Re8 {[%clk 0:00:05.6]} 81... Ra4 {[%clk
0:00:05.4]} 82. Rg8+ {[%clk 0:00:05.1]} 82... Kf7 {[%clk 0:00:06.1]} 83. Rb8
{[%clk 0:00:05.3]} 83... Rh4 {[%clk 0:00:06.3]} 84. Kf3 {[%clk 0:00:05.6]} 84...
Rd4 {[%clk 0:00:05.5]} 85. Rc8 {[%clk 0:00:05.8]} 85... Ke6 {[%clk 0:00:05.5]}
86. Re8+ {[%clk 0:00:06.1]} 86... Kf6 {[%clk 0:00:06.2]} 87. Rf8+ {[%clk
0:00:06.4]} 87... Kg6 {[%clk 0:00:06.9]} 88. Rg8+ {[%clk 0:00:06.7]} 88... Kf7
{[%clk 0:00:07.5]} 89. Rc8 {[%clk 0:00:06.6]} 89... Rb4 {[%clk 0:00:07.7]} 90.
Ra8 {[%clk 0:00:06.6]} 90... Kg7 {[%clk 0:00:05.6]} 91. Rc8 {[%clk 0:00:06.8]}
91... Ra4 {[%clk 0:00:05.2]} 92. Rc6 {[%clk 0:00:07]} 92... Rd4 {[%clk
0:00:05.4]} 93. Kg3 {[%clk 0:00:07.4]} 93... Kf7 {[%clk 0:00:05.7]} 94. Kf3
{[%clk 0:00:07.9]} 94... Ke7 {[%clk 0:00:06]} 95. Kg3 {[%clk 0:00:08.2]} 95...
Ra4 {[%clk 0:00:06.6]} 96. Kf3 {[%clk 0:00:08.6]} 96... Rb4 {[%clk 0:00:07.3]}
97. Ke3 {[%clk 0:00:08.9]} 97... Re4+ {[%clk 0:00:07.4]} 98. Kf3 {[%clk
0:00:09.3]} 98... Rg4 {[%clk 0:00:08.1]} 99. Ra6 {[%clk 0:00:08.7]} 99... Kf7
{[%clk 0:00:07.9]} 100. Rb6 {[%clk 0:00:08.7]} 100... Rh4 {[%clk 0:00:08.1]}
101. Ra6 {[%clk 0:00:09.1]} 101... Rb4 {[%clk 0:00:08.6]} 102. Rc6 {[%clk
0:00:09.1]} 102... Ra4 {[%clk 0:00:09.2]} 103. Rb6 {[%clk 0:00:09.5]} 103... Ke7
{[%clk 0:00:09.7]} 104. Rc6 {[%clk 0:00:09.7]} 104... Rd4 {[%clk 0:00:10]} 105.
Rb6 {[%clk 0:00:09.9]} 105... Rc4 {[%clk 0:00:10.2]} 106. Ra6 {[%clk 0:00:10.1]}
106... Kf7 {[%clk 0:00:10.2]} 107. Rb6 {[%clk 0:00:10.4]} 107... Re4 {[%clk
0:00:10.7]} 108. Ra6 {[%clk 0:00:10.4]} 108... Rd4 {[%clk 0:00:10.1]} 109. Rb6
{[%clk 0:00:10.7]} 109... Ke7 {[%clk 0:00:10.8]} 110. Ra6 {[%clk 0:00:11]}
110... Re4 {[%clk 0:00:11.7]} 111. Rb6 {[%clk 0:00:11.3]} 111... Re6 {[%clk
0:00:12.4]} 112. Rxe6+ {[%clk 0:00:10.5]} 112... Kxe6 {[%clk 0:00:13.3]} 113.
Kf4 {[%clk 0:00:10.5]} 113... Kf6 {[%clk 0:00:14.2]} 114. Kf3 {[%clk 0:00:11.1]}
114... Kg5 {[%clk 0:00:15.1]} 115. Kg3 {[%clk 0:00:11.4]} 115... f4+ {[%clk
0:00:16]} 116. Kf3 {[%clk 0:00:12]} 116... Kf5 {[%clk 0:00:16.9]} 117. Kf2
{[%clk 0:00:12.6]} 117... Kg4 {[%clk 0:00:17.8]} 118. Kg2 {[%clk 0:00:12.8]}
118... f3+ {[%clk 0:00:18.7]} 119. Kf2 {[%clk 0:00:13.4]} 119... Kf4 {[%clk
0:00:19.6]} 120. Kf1 {[%clk 0:00:13.9]} 120... Ke3 {[%clk 0:00:20.5]} 121. Ke1
{[%clk 0:00:14.4]} 121... Ke4 {[%clk 0:00:21.4]} 122. Kf2 {[%clk 0:00:14.7]}
122... Kf4 {[%clk 0:00:22.3]} 123. Kf1 {[%clk 0:00:14.4]} 123... Kg3 {[%clk
0:00:23.2]} 124. Kg1 {[%clk 0:00:14.7]} 124... f2+ {[%clk 0:00:24.1]} 125. Kf1
{[%clk 0:00:15]} 125... Kf3 {[%clk 0:00:25]} 1/2-1/2